[Event "*** SCC Grand Prix: Titled Tuesday Blitz"]
[Site "Chess.com"]
[Date "2020.06.02"]
[Round "9"]
[White "Norival"]
[Black "Godzillator"]
[Result "1-0"]
[WhiteElo "2656"]
[BlackElo "2472"]
[TimeControl "180+1"]
[EndTime "11:41:51 PDT"]
[Termination "Norival won by resignation"]

1. d4 {[%clk 0:03:00.9]} 1... d5 {[%clk 0:02:59.6]} 2. Nf3 {[%clk 0:03:00.2]}
2... Nf6 {[%clk 0:02:59.4]} 3. c4 {[%clk 0:02:59.8]} 3... c6 {[%clk 0:02:59.5]}
4. e3 {[%clk 0:02:58.7]} 4... Bf5 {[%clk 0:02:58.8]} 5. Nc3 {[%clk 0:02:58.3]}
5... a6 {[%clk 0:02:58.9]} 6. Bd2 {[%clk 0:02:58.1]} 6... h6 {[%clk 0:02:57.2]}
7. Rc1 {[%clk 0:02:57.8]} 7... b5 {[%clk 0:02:51.9]} 8. cxd5 {[%clk 0:02:53.9]}
8... cxd5 {[%clk 0:02:51.9]} 9. a4 {[%clk 0:02:47.9]} 9... b4 {[%clk 0:02:50.1]}
10. Na2 {[%clk 0:02:48]} 10... a5 {[%clk 0:02:50.2]} 11. Ne5 {[%clk 0:02:45.7]}
11... Nfd7 {[%clk 0:02:22.8]} 12. Bb5 {[%clk 0:02:43.9]} 12... f6 {[%clk
0:02:14.8]} 13. Qh5+ {[%clk 0:02:40.6]} 13... g6 {[%clk 0:02:14.8]} 14. Nxg6
{[%clk 0:02:40.3]} 1-0

[Event "*** SCC Grand Prix: Titled Tuesday Blitz"]
[Site "Chess.com"]
[Date "2020.06.02"]
[Round "9"]
[White "ChessBitl"]
[Black "2346PL"]
[Result "0-1"]
[WhiteElo "2326"]
[BlackElo "2452"]
[TimeControl "180+1"]
[EndTime "11:42:16 PDT"]
[Termination "2346PL won by checkmate"]

1. e4 {[%clk 0:03:00.9]} 1... c5 {[%clk 0:02:59.8]} 2. Nf3 {[%clk 0:03:00.4]}
2... Nf6 {[%clk 0:03:00.4]} 3. Nc3 {[%clk 0:02:55.7]} 3... Nc6 {[%clk
0:02:59.1]} 4. d4 {[%clk 0:02:54.8]} 4... d5 {[%clk 0:02:59]} 5. exd5 {[%clk
0:02:43.5]} 5... Nxd5 {[%clk 0:02:59.9]} 6. Bb5 {[%clk 0:02:40.1]} 6... Nxc3
{[%clk 0:02:58.8]} 7. Bxc6+ {[%clk 0:02:37.6]} 7... bxc6 {[%clk 0:02:59.2]} 8.
bxc3 {[%clk 0:02:37.9]} 8... cxd4 {[%clk 0:02:58.3]} 9. cxd4 {[%clk 0:02:37]}
9... Ba6 {[%clk 0:02:57.3]} 10. Be3 {[%clk 0:02:12.2]} 10... e6 {[%clk
0:02:54.1]} 11. Ne5 {[%clk 0:02:10]} 11... Bb4+ {[%clk 0:02:47]} 12. Bd2 {[%clk
0:02:06.4]} 12... Qxd4 {[%clk 0:02:45.3]} 13. Nf3 {[%clk 0:01:52.4]} 13... Qe4+
{[%clk 0:02:38.8]} 14. Qe2 {[%clk 0:01:42.2]} 14... Qxe2# {[%clk 0:02:38.6]} 0-1

[Event "*** SCC Grand Prix: Titled Tuesday Blitz"]
[Site "Chess.com"]
[Date "2020.06.02"]
[Round "9"]
[White "IriBu"]
[Black "PauloFanha"]
[Result "1-0"]
[WhiteElo "2470"]
[BlackElo "1966"]
[TimeControl "180+1"]
[EndTime "11:42:20 PDT"]
[Termination "IriBu won by checkmate"]

1. e4 {[%clk 0:03:00.9]} 1... e6 {[%clk 0:02:58.5]} 2. d4 {[%clk 0:03:00.5]}
2... d5 {[%clk 0:02:58.8]} 3. Nc3 {[%clk 0:03:00.7]} 3... dxe4 {[%clk
0:02:57.4]} 4. Nxe4 {[%clk 0:02:59.2]} 4... Nd7 {[%clk 0:02:57.8]} 5. Nf3 {[%clk
0:02:58.9]} 5... Ngf6 {[%clk 0:02:58]} 6. Bg5 {[%clk 0:02:58.6]} 6... Be7 {[%clk
0:02:57.6]} 7. Nxf6+ {[%clk 0:02:58.5]} 7... Nxf6 {[%clk 0:02:55.9]} 8. Bd3
{[%clk 0:02:54.1]} 8... c5 {[%clk 0:02:53.9]} 9. Qd2 {[%clk 0:02:49.7]} 9...
cxd4 {[%clk 0:02:50.9]} 10. O-O-O {[%clk 0:02:49.4]} 10... O-O {[%clk
0:02:43.7]} 11. Kb1 {[%clk 0:02:43]} 11... h6 {[%clk 0:02:41.7]} 12. Bxh6 {[%clk
0:02:32.6]} 12... gxh6 {[%clk 0:02:37]} 13. Qxh6 {[%clk 0:02:32.5]} 13... Qa5
{[%clk 0:02:28.5]} 14. Ng5 {[%clk 0:02:28.2]} 14... Rd8 {[%clk 0:02:03.5]} 15.
Bh7+ {[%clk 0:02:24.5]} 15... Kh8 {[%clk 0:02:01.7]} 16. Bg6+ {[%clk 0:02:24.6]}
16... Kg8 {[%clk 0:01:59.7]} 17. Bxf7# {[%clk 0:02:24.6]} 1-0

[Event "*** SCC Grand Prix: Titled Tuesday Blitz"]
[Site "Chess.com"]
[Date "2020.06.02"]
[Round "9"]
[White "Susal_De_Silva"]
[Black "SophieNikoladze"]
[Result "1-0"]
[WhiteElo "2346"]
[BlackElo "2172"]
[TimeControl "180+1"]
[EndTime "11:42:24 PDT"]
[Termination "Susal_De_Silva won by resignation"]

1. e4 {[%clk 0:03:00.9]} 1... d6 {[%clk 0:03:00]} 2. d4 {[%clk 0:02:59.3]} 2...
Nf6 {[%clk 0:03:00.1]} 3. Nc3 {[%clk 0:02:59.3]} 3... e5 {[%clk 0:03:00.3]} 4.
Nf3 {[%clk 0:02:57.8]} 4... exd4 {[%clk 0:02:59.8]} 5. Nxd4 {[%clk 0:02:56.9]}
5... Be7 {[%clk 0:03:00.3]} 6. Be3 {[%clk 0:02:56.2]} 6... O-O {[%clk
0:03:00.7]} 7. h3 {[%clk 0:02:56.8]} 7... a6 {[%clk 0:03:00.7]} 8. Be2 {[%clk
0:02:51.4]} 8... c5 {[%clk 0:03:00.5]} 9. Nf3 {[%clk 0:02:46.7]} 9... b5 {[%clk
0:03:00.4]} 10. a3 {[%clk 0:02:37.7]} 10... Bb7 {[%clk 0:02:59.2]} 11. Nd2
{[%clk 0:02:19]} 11... b4 {[%clk 0:02:57.3]} 12. axb4 {[%clk 0:02:19.2]} 12...
cxb4 {[%clk 0:02:57.5]} 13. Na2 {[%clk 0:02:19.6]} 13... Nxe4 {[%clk 0:02:57.3]}
14. Nxb4 {[%clk 0:02:15.4]} 14... Nxd2 {[%clk 0:02:51.4]} 15. Qxd2 {[%clk
0:02:15.3]} 15... Bxg2 {[%clk 0:02:51]} 16. Rg1 {[%clk 0:02:14.9]} 16... Bxh3
{[%clk 0:02:50.8]} 17. Bh6 {[%clk 0:02:04.6]} 17... Bf6 {[%clk 0:02:47.2]} 18.
Bxg7 {[%clk 0:02:03.2]} 18... Bxg7 {[%clk 0:02:33]} 19. Qh6 {[%clk 0:02:01.8]}
1-0

[Event "*** SCC Grand Prix: Titled Tuesday Blitz"]
[Site "Chess.com"]
[Date "2020.06.02"]
[Round "9"]
[White "ZverevLev"]
[Black "ega2006"]
[Result "0-1"]
[WhiteElo "2229"]
[BlackElo "2368"]
[TimeControl "180+1"]
[EndTime "11:42:30 PDT"]
[Termination "ega2006 won by resignation"]

1. e4 {[%clk 0:03:00.4]} 1... c5 {[%clk 0:03:00.5]} 2. Nf3 {[%clk 0:02:58.3]}
2... Nc6 {[%clk 0:03:01]} 3. d4 {[%clk 0:02:56.5]} 3... cxd4 {[%clk 0:03:01.9]}
4. Nxd4 {[%clk 0:02:56.4]} 4... g6 {[%clk 0:03:02.4]} 5. Nc3 {[%clk 0:02:56]}
5... Bg7 {[%clk 0:03:02.2]} 6. Be3 {[%clk 0:02:55.8]} 6... Nf6 {[%clk
0:03:02.5]} 7. Bc4 {[%clk 0:02:53.6]} 7... O-O {[%clk 0:03:01.9]} 8. Bb3 {[%clk
0:02:51.1]} 8... d6 {[%clk 0:03:01.8]} 9. f3 {[%clk 0:02:48.9]} 9... Bd7 {[%clk
0:03:01.6]} 10. Qd2 {[%clk 0:02:47.3]} 10... Nxd4 {[%clk 0:03:01.4]} 11. Bxd4
{[%clk 0:02:46.6]} 11... b5 {[%clk 0:03:01.9]} 12. h4 {[%clk 0:02:43.2]} 12...
a5 {[%clk 0:03:01.4]} 13. h5 {[%clk 0:02:38.9]} 13... a4 {[%clk 0:03:01]} 14.
Bd5 {[%clk 0:02:34.2]} 14... b4 {[%clk 0:03:00.8]} 15. hxg6 {[%clk 0:02:31.8]}
15... hxg6 {[%clk 0:02:57]} 16. g4 {[%clk 0:02:23]} 16... bxc3 {[%clk
0:02:54.6]} 17. Qh2 {[%clk 0:02:17.4]} 17... Re8 {[%clk 0:02:47]} 18. Bxf6
{[%clk 0:02:12.7]} 18... exf6 {[%clk 0:02:47.9]} 19. Bxa8 {[%clk 0:02:09.6]}
19... Qxa8 {[%clk 0:02:44]} 20. Qxd6 {[%clk 0:02:06.6]} 20... cxb2 {[%clk
0:02:43.5]} 21. Rb1 {[%clk 0:02:03.6]} 21... Bxg4 {[%clk 0:02:35.3]} 0-1

[Event "*** SCC Grand Prix: Titled Tuesday Blitz"]
[Site "Chess.com"]
[Date "2020.06.02"]
[Round "9"]
[White "barbara25"]
[Black "awesomevishesh"]
[Result "0-1"]
[WhiteElo "2239"]
[BlackElo "2450"]
[TimeControl "180+1"]
[EndTime "11:42:33 PDT"]
[Termination "awesomevishesh won by resignation"]

1. e4 {[%clk 0:03:00.9]} 1... c5 {[%clk 0:02:59.6]} 2. Nf3 {[%clk 0:02:58.2]}
2... d6 {[%clk 0:02:59.5]} 3. d4 {[%clk 0:02:58]} 3... cxd4 {[%clk 0:02:59.4]}
4. Nxd4 {[%clk 0:02:58.9]} 4... Nf6 {[%clk 0:02:56.8]} 5. f3 {[%clk 0:02:58.9]}
5... e5 {[%clk 0:02:55.4]} 6. Nb3 {[%clk 0:02:58.6]} 6... a5 {[%clk 0:02:53.6]}
7. c4 {[%clk 0:02:56.4]} 7... Nxe4 {[%clk 0:02:43.8]} 8. fxe4 {[%clk 0:02:55.8]}
8... Qh4+ {[%clk 0:02:43]} 9. Kd2 {[%clk 0:02:55.9]} 9... a4 {[%clk 0:02:26.2]}
10. Nc3 {[%clk 0:02:42.5]} 10... axb3 {[%clk 0:02:09.2]} 11. Qxb3 {[%clk
0:02:42.2]} 11... Nc6 {[%clk 0:02:02.3]} 12. Nd5 {[%clk 0:02:40.3]} 12... Qf2+
{[%clk 0:01:47.7]} 13. Kd1 {[%clk 0:02:30.1]} 13... Bg4+ {[%clk 0:01:44.5]} 0-1

[Event "*** SCC Grand Prix: Titled Tuesday Blitz"]
[Site "Chess.com"]
[Date "2020.06.02"]
[Round "9"]
[White "AlexanderL"]
[Black "econpower"]
[Result "1-0"]
[WhiteElo "2820"]
[BlackElo "2650"]
[TimeControl "180+1"]
[EndTime "11:42:40 PDT"]
[Termination "AlexanderL won by resignation"]

1. Nf3 {[%clk 0:03:00.9]} 1... d6 {[%clk 0:02:59.7]} 2. d4 {[%clk 0:02:59.7]}
2... g6 {[%clk 0:02:59.9]} 3. c4 {[%clk 0:02:58.6]} 3... Bg7 {[%clk 0:03:00.4]}
4. Nc3 {[%clk 0:02:58.8]} 4... Nd7 {[%clk 0:03:01.1]} 5. e4 {[%clk 0:02:58.2]}
5... e5 {[%clk 0:03:01.7]} 6. Be2 {[%clk 0:02:58.1]} 6... Ne7 {[%clk 0:03:02.1]}
7. O-O {[%clk 0:02:57.3]} 7... O-O {[%clk 0:03:02.1]} 8. Be3 {[%clk 0:02:25]}
8... c5 {[%clk 0:03:02]} 9. d5 {[%clk 0:02:12.9]} 9... h6 {[%clk 0:02:51.9]} 10.
b4 {[%clk 0:02:09.2]} 10... b6 {[%clk 0:02:42.5]} 11. Nb5 {[%clk 0:02:07.7]}
11... Nf6 {[%clk 0:02:39.3]} 12. bxc5 {[%clk 0:02:07.3]} 12... bxc5 {[%clk
0:02:38.4]} 13. Nd2 {[%clk 0:02:07.4]} 13... a6 {[%clk 0:02:35.4]} 14. Nc3
{[%clk 0:02:07.6]} 14... Ne8 {[%clk 0:02:29]} 15. Rb1 {[%clk 0:01:59.5]} 15...
f5 {[%clk 0:02:28.8]} 16. f3 {[%clk 0:01:59.1]} 16... f4 {[%clk 0:02:29]} 17.
Bf2 {[%clk 0:01:59.3]} 17... g5 {[%clk 0:02:29.9]} 18. Qb3 {[%clk 0:01:57.8]}
18... Ng6 {[%clk 0:02:29.4]} 19. Qb6 {[%clk 0:01:55.9]} 19... Qf6 {[%clk
0:02:29.3]} 20. Qc6 {[%clk 0:01:53.7]} 1-0

[Event "*** SCC Grand Prix: Titled Tuesday Blitz"]
[Site "Chess.com"]
[Date "2020.06.02"]
[Round "9"]
[White "Rish_97"]
[Black "OhanyanEminChess"]
[Result "1-0"]
[WhiteElo "2641"]
[BlackElo "2448"]
[TimeControl "180+1"]
[EndTime "11:42:50 PDT"]
[Termination "Rish_97 won by resignation"]

1. e4 {[%clk 0:03:00.9]} 1... e5 {[%clk 0:02:55.8]} 2. Nf3 {[%clk 0:03:00.3]}
2... Nc6 {[%clk 0:02:55.8]} 3. Bb5 {[%clk 0:03:00.2]} 3... f5 {[%clk 0:02:55.7]}
4. d3 {[%clk 0:02:59.3]} 4... fxe4 {[%clk 0:02:53.9]} 5. dxe4 {[%clk 0:03:00.2]}
5... Nf6 {[%clk 0:02:53.5]} 6. O-O {[%clk 0:03:00.3]} 6... Bc5 {[%clk
0:02:49.6]} 7. Qd3 {[%clk 0:03:00.2]} 7... d6 {[%clk 0:02:48.5]} 8. Qc4 {[%clk
0:02:58.8]} 8... Bd7 {[%clk 0:02:46.1]} 9. Nc3 {[%clk 0:02:53.4]} 9... Qe7
{[%clk 0:02:38.7]} 10. Nd5 {[%clk 0:02:53.3]} 10... Nxd5 {[%clk 0:02:38.3]} 11.
exd5 {[%clk 0:02:54.2]} 11... Nd8 {[%clk 0:02:35.9]} 12. Bxd7+ {[%clk 0:02:53]}
12... Qxd7 {[%clk 0:02:27.4]} 13. Nxe5 {[%clk 0:02:49.6]} 13... Bxf2+ {[%clk
0:02:25.2]} 14. Rxf2 {[%clk 0:02:50.5]} 14... dxe5 {[%clk 0:02:25.5]} 15. Be3
{[%clk 0:02:43.1]} 15... Nf7 {[%clk 0:02:24.4]} 16. Bc5 {[%clk 0:02:30]} 16...
b6 {[%clk 0:02:03.4]} 17. Raf1 {[%clk 0:02:20]} 17... Nh6 {[%clk 0:01:43]} 18.
Rf8+ {[%clk 0:02:17.5]} 1-0

[Event "*** SCC Grand Prix: Titled Tuesday Blitz"]
[Site "Chess.com"]
[Date "2020.06.02"]
[Round "9"]
[White "anon569"]
[Black "biaf13"]
[Result "1-0"]
[WhiteElo "2278"]
[BlackElo "2024"]
[TimeControl "180+1"]
[EndTime "11:42:56 PDT"]
[Termination "anon569 won by resignation"]

1. e4 {[%clk 0:03:00.9]} 1... c5 {[%clk 0:02:59.6]} 2. Nf3 {[%clk 0:03:00]} 2...
d6 {[%clk 0:02:59.5]} 3. d4 {[%clk 0:02:59.8]} 3... cxd4 {[%clk 0:03:00.4]} 4.
Nxd4 {[%clk 0:03:00.2]} 4... Nf6 {[%clk 0:03:01]} 5. Nc3 {[%clk 0:03:00.2]} 5...
a6 {[%clk 0:03:01.4]} 6. Bg5 {[%clk 0:03:00.3]} 6... e6 {[%clk 0:02:59.2]} 7. f4
{[%clk 0:03:00.5]} 7... Qc7 {[%clk 0:02:59]} 8. Qf3 {[%clk 0:02:58.8]} 8... b5
{[%clk 0:02:58]} 9. a3 {[%clk 0:02:46.9]} 9... Nbd7 {[%clk 0:02:55.8]} 10. O-O-O
{[%clk 0:02:39.4]} 10... Bb7 {[%clk 0:02:55.3]} 11. Bd3 {[%clk 0:02:39.2]} 11...
Be7 {[%clk 0:02:51.9]} 12. Rhe1 {[%clk 0:02:31.4]} 12... h6 {[%clk 0:02:49.9]}
13. Bh4 {[%clk 0:02:17]} 13... Nxe4 {[%clk 0:02:36.5]} 14. Bxe4 {[%clk
0:02:13.1]} 14... Bxe4 {[%clk 0:02:33.8]} 15. Qxe4 {[%clk 0:01:55.6]} 15... d5
{[%clk 0:02:32.4]} 16. Nxd5 {[%clk 0:01:54.3]} 1-0

[Event "*** SCC Grand Prix: Titled Tuesday Blitz"]
[Site "Chess.com"]
[Date "2020.06.02"]
[Round "9"]
[White "PotapovaM"]
[Black "WeAintSurePal"]
[Result "1/2-1/2"]
[WhiteElo "2446"]
[BlackElo "2275"]
[TimeControl "180+1"]
[EndTime "11:43:09 PDT"]
[Termination "Game drawn by agreement"]

1. d4 {[%clk 0:03:00.9]} 1... c6 {[%clk 0:03:00.9]} 2. c4 {[%clk 0:03:01.3]}
2... d5 {[%clk 0:02:59.1]} 3. Nf3 {[%clk 0:03:02]} 3... Nf6 {[%clk 0:02:57.8]}
4. g3 {[%clk 0:03:02.5]} 4... g6 {[%clk 0:02:54.9]} 5. Bg2 {[%clk 0:03:02.9]}
5... Bg7 {[%clk 0:02:55.4]} 6. O-O {[%clk 0:03:03.6]} 6... O-O {[%clk
0:02:55.9]} 7. b3 {[%clk 0:03:04.3]} 7... c5 {[%clk 0:02:54.6]} 8. Bb2 {[%clk
0:02:59.2]} 8... Ne4 {[%clk 0:02:51.6]} 9. Nbd2 {[%clk 0:02:53.7]} 9... Nxd2
{[%clk 0:02:50.1]} 10. Qxd2 {[%clk 0:02:45.5]} 10... dxc4 {[%clk 0:02:42.1]} 11.
bxc4 {[%clk 0:02:42.1]} 11... cxd4 {[%clk 0:02:39.8]} 12. Nxd4 {[%clk
0:02:25.5]} 12... Nc6 {[%clk 0:02:37.3]} 13. Rfd1 {[%clk 0:02:15.6]} 13... Nxd4
{[%clk 0:02:34.7]} 14. Bxd4 {[%clk 0:02:15.3]} 14... Qxd4 {[%clk 0:02:31.4]} 15.
Qxd4 {[%clk 0:02:16.2]} 15... Bxd4 {[%clk 0:02:31.2]} 16. Rxd4 {[%clk
0:02:17.1]} 16... Rb8 {[%clk 0:02:25.9]} 17. Rb1 {[%clk 0:02:02.8]} 17... b6
{[%clk 0:02:20.5]} 18. c5 {[%clk 0:01:55.9]} 18... bxc5 {[%clk 0:02:17.4]} 19.
Rxb8 {[%clk 0:01:53.2]} 19... cxd4 {[%clk 0:02:17.4]} 20. Ra8 {[%clk 0:01:51.9]}
20... a6 {[%clk 0:02:13.8]} 21. Be4 {[%clk 0:01:47.9]} 21... Kg7 {[%clk
0:02:09.8]} 22. Bd3 {[%clk 0:01:47.1]} 1/2-1/2

[Event "*** SCC Grand Prix: Titled Tuesday Blitz"]
[Site "Chess.com"]
[Date "2020.06.02"]
[Round "9"]
[White "bratkoo"]
[Black "tteshan"]
[Result "1-0"]
[WhiteElo "2380"]
[BlackElo "2230"]
[TimeControl "180+1"]
[EndTime "11:43:13 PDT"]
[Termination "bratkoo won by resignation"]

1. e4 {[%clk 0:02:55.7]} 1... c5 {[%clk 0:02:59.9]} 2. Nf3 {[%clk 0:02:55.1]}
2... d6 {[%clk 0:03:00.2]} 3. d4 {[%clk 0:02:54.9]} 3... cxd4 {[%clk 0:03:01.1]}
4. Nxd4 {[%clk 0:02:55]} 4... Nf6 {[%clk 0:03:00.6]} 5. Nc3 {[%clk 0:02:55.6]}
5... a6 {[%clk 0:02:59.9]} 6. h3 {[%clk 0:02:55.4]} 6... e6 {[%clk 0:02:57.7]}
7. Be3 {[%clk 0:02:54]} 7... Be7 {[%clk 0:02:57.6]} 8. Qd2 {[%clk 0:02:54.3]}
8... O-O {[%clk 0:02:57.5]} 9. O-O-O {[%clk 0:02:54.9]} 9... Qc7 {[%clk
0:02:56.8]} 10. g4 {[%clk 0:02:55.5]} 10... b5 {[%clk 0:02:54]} 11. g5 {[%clk
0:02:56]} 11... Nfd7 {[%clk 0:02:53.9]} 12. h4 {[%clk 0:02:56.4]} 12... Bb7
{[%clk 0:02:54.1]} 13. Bh3 {[%clk 0:02:54.4]} 13... b4 {[%clk 0:02:47.4]} 14.
Nce2 {[%clk 0:02:54.2]} 14... Bxe4 {[%clk 0:02:43]} 15. f3 {[%clk 0:02:54.8]}
15... Bb7 {[%clk 0:02:42.3]} 16. h5 {[%clk 0:02:54.9]} 16... Nc6 {[%clk
0:02:39.9]} 17. g6 {[%clk 0:02:54.9]} 17... Nxd4 {[%clk 0:02:28.7]} 18. Nxd4
{[%clk 0:02:54.4]} 18... Nc5 {[%clk 0:02:06.7]} 19. gxf7+ {[%clk 0:02:51.9]}
19... Rxf7 {[%clk 0:02:07.1]} 20. Nxe6 {[%clk 0:02:51.7]} 20... Qa5 {[%clk
0:01:50.5]} 21. Nxc5 {[%clk 0:02:51.3]} 21... dxc5 {[%clk 0:01:51.4]} 22. Be6
{[%clk 0:02:50.9]} 22... Rf8 {[%clk 0:01:35.6]} 23. Qd7 {[%clk 0:02:49.5]} 23...
Bxf3 {[%clk 0:01:29.4]} 24. Qxe7 {[%clk 0:02:49]} 24... Bxd1 {[%clk 0:01:25]}
25. Bxc5 {[%clk 0:02:48.3]} 25... Qd8 {[%clk 0:01:17.7]} 26. Bxf7+ {[%clk
0:02:46]} 26... Kh8 {[%clk 0:01:12.8]} 27. Qxf8+ {[%clk 0:02:45.6]} 27... Qxf8
{[%clk 0:01:13]} 28. Bxf8 {[%clk 0:02:46.5]} 1-0

[Event "*** SCC Grand Prix: Titled Tuesday Blitz"]
[Site "Chess.com"]
[Date "2020.06.02"]
[Round "9"]
[White "Makswolf200817"]
[Black "Natalya_Buksa"]
[Result "1/2-1/2"]
[WhiteElo "2406"]
[BlackElo "2560"]
[TimeControl "180+1"]
[EndTime "11:43:26 PDT"]
[Termination "Game drawn by repetition"]

1. Nf3 {[%clk 0:03:00.9]} 1... d5 {[%clk 0:02:59.8]} 2. e3 {[%clk 0:03:00.6]}
2... e6 {[%clk 0:03:00]} 3. c4 {[%clk 0:03:00]} 3... Nf6 {[%clk 0:03:00.2]} 4.
b3 {[%clk 0:02:59.2]} 4... Be7 {[%clk 0:03:00.1]} 5. Bb2 {[%clk 0:02:59]} 5...
O-O {[%clk 0:03:00.7]} 6. Nc3 {[%clk 0:02:58.5]} 6... c5 {[%clk 0:03:00.7]} 7.
cxd5 {[%clk 0:02:58.3]} 7... exd5 {[%clk 0:03:00.5]} 8. d4 {[%clk 0:02:58.5]}
8... Nc6 {[%clk 0:03:00.6]} 9. Be2 {[%clk 0:02:58.2]} 9... cxd4 {[%clk
0:02:59.9]} 10. Nxd4 {[%clk 0:02:57.8]} 10... Bb4 {[%clk 0:02:57.5]} 11. O-O
{[%clk 0:02:56.8]} 11... Ne4 {[%clk 0:02:52.6]} 12. Nxe4 {[%clk 0:02:41.6]}
12... dxe4 {[%clk 0:02:53.5]} 13. Nxc6 {[%clk 0:02:39.5]} 13... bxc6 {[%clk
0:02:48.6]} 14. Rc1 {[%clk 0:02:39.1]} 14... Bb7 {[%clk 0:02:36]} 15. Qc2 {[%clk
0:02:29.3]} 15... Qe7 {[%clk 0:02:32.1]} 16. Rfd1 {[%clk 0:02:21.9]} 16... Rad8
{[%clk 0:02:31.4]} 17. h3 {[%clk 0:02:20.4]} 17... h6 {[%clk 0:02:30.2]} 18. Qc4
{[%clk 0:02:13.1]} 18... a5 {[%clk 0:02:27.9]} 19. Bg4 {[%clk 0:01:55.2]} 19...
Bd2 {[%clk 0:02:00.8]} 20. Rc2 {[%clk 0:01:50.6]} 20... Bb4 {[%clk 0:02:01.2]}
21. Rcc1 {[%clk 0:01:49.6]} 21... Bd2 {[%clk 0:01:58]} 22. Rc2 {[%clk
0:01:44.5]} 22... Bb4 {[%clk 0:01:57.6]} 23. Rcc1 {[%clk 0:01:36.3]} 1/2-1/2

[Event "*** SCC Grand Prix: Titled Tuesday Blitz"]
[Site "Chess.com"]
[Date "2020.06.02"]
[Round "9"]
[White "MartinMatthiesen"]
[Black "MightyGMpretender"]
[Result "0-1"]
[WhiteElo "2353"]
[BlackElo "2565"]
[TimeControl "180+1"]
[EndTime "11:43:39 PDT"]
[Termination "MightyGMpretender won by checkmate"]

1. d4 {[%clk 0:03:00.9]} 1... Nf6 {[%clk 0:02:59.4]} 2. c4 {[%clk 0:03:00.7]}
2... e6 {[%clk 0:02:59.5]} 3. Nf3 {[%clk 0:03:00.3]} 3... d5 {[%clk 0:03:00]} 4.
Nc3 {[%clk 0:02:59.9]} 4... c6 {[%clk 0:03:00.6]} 5. e3 {[%clk 0:02:58.6]} 5...
Nbd7 {[%clk 0:02:59.8]} 6. Bd3 {[%clk 0:02:58.5]} 6... dxc4 {[%clk 0:02:59.9]}
7. Bxc4 {[%clk 0:02:59.4]} 7... b5 {[%clk 0:03:00.5]} 8. Bd3 {[%clk 0:02:59.4]}
8... Bb7 {[%clk 0:03:01]} 9. O-O {[%clk 0:02:58.1]} 9... a6 {[%clk 0:03:01.2]}
10. e4 {[%clk 0:02:58]} 10... c5 {[%clk 0:03:01.8]} 11. d5 {[%clk 0:02:53.4]}
11... c4 {[%clk 0:03:02]} 12. Bc2 {[%clk 0:02:51.3]} 12... Qc7 {[%clk
0:03:02.4]} 13. Nd4 {[%clk 0:02:50.3]} 13... O-O-O {[%clk 0:02:43.5]} 14. dxe6
{[%clk 0:02:47.3]} 14... Ne5 {[%clk 0:02:38.2]} 15. exf7 {[%clk 0:02:42.3]}
15... Bc5 {[%clk 0:02:10]} 16. Be3 {[%clk 0:02:37.5]} 16... Neg4 {[%clk
0:02:09.6]} 17. g3 {[%clk 0:02:36.6]} 17... Qxf7 {[%clk 0:02:06.1]} 18. Qd2
{[%clk 0:01:45.3]} 18... Qh5 {[%clk 0:02:00]} 19. h4 {[%clk 0:01:44.7]} 19... g5
{[%clk 0:01:59.9]} 20. e5 {[%clk 0:01:31]} 20... gxh4 {[%clk 0:01:56.9]} 21.
exf6 {[%clk 0:01:29.5]} 21... hxg3 {[%clk 0:01:55.9]} 22. fxg3 {[%clk
0:01:29.4]} 22... Qh1# {[%clk 0:01:55]} 0-1

[Event "*** SCC Grand Prix: Titled Tuesday Blitz"]
[Site "Chess.com"]
[Date "2020.06.02"]
[Round "9"]
[White "Dmitry_Konenkin"]
[Black "WiktoriaPOL"]
[Result "1-0"]
[WhiteElo "2296"]
[BlackElo "2035"]
[TimeControl "180+1"]
[EndTime "11:43:52 PDT"]
[Termination "Dmitry_Konenkin won by resignation"]

1. d4 {[%clk 0:03:00.9]} 1... Nf6 {[%clk 0:02:58.7]} 2. Bg5 {[%clk 0:03:00.9]}
2... Ne4 {[%clk 0:02:54.7]} 3. Bh4 {[%clk 0:03:00.5]} 3... d5 {[%clk 0:02:52.9]}
4. f3 {[%clk 0:02:58.1]} 4... g5 {[%clk 0:02:48.6]} 5. fxe4 {[%clk 0:02:57.1]}
5... gxh4 {[%clk 0:02:48.5]} 6. exd5 {[%clk 0:02:57.2]} 6... Qxd5 {[%clk
0:02:47.8]} 7. Nc3 {[%clk 0:02:57.9]} 7... Qg5 {[%clk 0:02:39.6]} 8. Nf3 {[%clk
0:02:52.5]} 8... Qe3 {[%clk 0:02:35.3]} 9. Nd5 {[%clk 0:02:34.9]} 9... Qe4
{[%clk 0:02:15.6]} 10. Nxc7+ {[%clk 0:02:34]} 10... Kd8 {[%clk 0:02:14]} 11.
Nxa8 {[%clk 0:02:33.9]} 11... Bh6 {[%clk 0:02:05.2]} 12. Qd3 {[%clk 0:02:27.3]}
12... Qc6 {[%clk 0:02:03.2]} 13. Ne5 {[%clk 0:02:20.7]} 13... Qf6 {[%clk
0:02:02.2]} 14. Qc4 {[%clk 0:02:15.1]} 14... Nc6 {[%clk 0:01:49.7]} 15. Nxf7+
{[%clk 0:02:06.1]} 15... Ke8 {[%clk 0:01:47.2]} 16. Nc7+ {[%clk 0:02:04.1]}
16... Kf8 {[%clk 0:01:45.4]} 17. Nxh8 {[%clk 0:02:02.3]} 17... Be3 {[%clk
0:01:45.6]} 18. Qf7+ {[%clk 0:01:53.4]} 18... Qxf7 {[%clk 0:01:45.2]} 19. Nxf7
{[%clk 0:01:53.1]} 19... Kxf7 {[%clk 0:01:45.5]} 20. c3 {[%clk 0:01:48.2]} 20...
e6 {[%clk 0:01:34.2]} 21. Nb5 {[%clk 0:01:47.1]} 21... Ke7 {[%clk 0:01:32.1]}
22. g3 {[%clk 0:01:41.4]} 22... Bg5 {[%clk 0:01:29.3]} 1-0